bitfinex/quotes_ETHUSD_20250314
["timestamp","ask_amount","ask_price","bid_price","bid_amount"]
[1741946618612,7.985,1897.9,1897.8,0.08125182]
[1741946618786,3.0,1897.8,1897.7,5.26946]
[1741946619123,3.0,1897.8,1897.7,5.35084174]
[1741946620768,3.0,1897.8,1897.7,0.08138174]
[1741946621109,4.79754911,1897.8,1897.7,5.35091174]
[1741946622350,3.0,1897.8,1897.7,5.35091174]
[1741946623449,9.78254911,1897.9,1897.8,5.26925]
[1741946623819,9.78254911,1897.9,1897.8,5.34789801]
[1741946624656,6.02,1898.0,1897.8,5.34789801]
[1741946624657,9.02,1898.0,1897.9,5.26898]
[1741946624974,7.984,1898.0,1897.9,6.1443981]
[1741946625736,9.78154911,1898.0,1897.9,6.1443981]
[1741946626161,9.78154911,1898.0,1897.9,0.8754181]
[1741946626362,9.78154911,1898.0,1897.9,0.0785181]
[1741946628874,9.78154911,1898.0,1897.9,5.3474981]
[1741946629728,7.984,1898.0,1897.9,0.0785181]
[1741946629967,4.79754911,1898.0,1897.9,0.0785181]
[1741946630270,9.78154911,1898.0,1897.9,5.26898]
[1741946630634,9.78154911,1898.0,1897.9,5.34741338]
[1741946631471,7.984,1898.0,1897.9,5.34741338]
[1741946634468,9.78154911,1898.0,1897.9,0.07843338]
[1741946634642,11.28654702,1898.0,1897.9,0.07843338]
[1741946635615,16.55524702,1898.0,1897.6,5.26968]
[1741946635774,1.79754911,1897.8,1897.6,5.26964]
[1741946636116,1.79754911,1897.8,1897.7,5.34822322]
[1741946636318,1.79754911,1897.8,1897.7,0.07869322]
[1741946636519,3.30321202,1897.8,1897.7,0.07869322]
[1741946636691,3.30321202,1897.8,1897.6,5.26979]
[1741946636880,1.50566291,1897.8,1897.7,0.07862262]
[1741946637082,3.30321202,1897.8,1897.7,0.07862262]
[1741946637282,11.57246202,1897.8,1897.7,0.07862262]
[1741946637510,13.53932,1897.7,1897.4,0.39580437]
[1741946637681,1.79754911,1897.5,1897.4,0.39580437]
[1741946638191,1.79754911,1897.5,1897.4,0.07906895]
[1741946638919,4.983,1897.6,1897.5,5.27009]
[1741946639083,4.983,1897.6,1897.5,6.07969]
[1741946639279,4.983,1897.6,1897.5,6.15623598]
[1741946639508,4.983,1897.6,1897.5,7.29888558]
[1741946639818,6.78054911,1897.6,1897.5,6.15623598]
[1741946640318,4.983,1897.6,1897.5,6.15623598]
[1741946640931,6.78054911,1897.6,1897.5,6.15623598]
[1741946641923,4.983,1897.6,1897.5,6.15623598]
[1741946642623,6.78054911,1897.6,1897.5,6.15623598]
[1741946642827,6.78054911,1897.6,1897.5,5.34663598]
[1741946643356,6.78054911,1897.6,1897.5,0.07654598]
[1741946643809,6.78054911,1897.6,1897.5,5.34663598]
[1741946644910,4.983,1897.6,1897.5,5.34663598]
[1741946645111,3.0,1897.7,1897.6,6.09221]
[1741946645333,7.984,1897.7,1897.6,6.09221]
[1741946645609,9.78154911,1897.7,1897.6,5.34631782]
[1741946649252,9.78154911,1897.7,1897.6,0.07650782]
[1741946651890,9.78154911,1897.7,1897.6,5.34631782]
[1741946652595,7.984,1897.7,1897.6,5.34631782]
[1741946652750,9.78154911,1897.7,1897.6,5.34631782]
[1741946652949,7.984,1897.7,1897.6,5.34631782]
[1741946653460,11.36170402,1897.7,1897.6,0.07650782]
[1741946653790,9.78154911,1897.7,1897.6,5.34631782]
[1741946655700,9.78154911,1897.7,1897.6,0.07650782]
[1741946656208,9.78154911,1897.7,1897.4,6.03024]
[1741946656413,1.79754911,1897.6,1897.5,0.07663777]
[1741946656779,1.79754911,1897.6,1897.4,6.03012]
[1741946657113,1.79754911,1897.6,1897.5,0.07665892]
[1741946657268,4.08796202,1897.6,1897.5,0.07665892]
[1741946657904,4.08796202,1897.6,1897.3,5.27049]
[1741946658111,1.79754911,1897.5,1897.3,5.27049]
[1741946658319,1.79754911,1897.5,1897.2,5.27092]
[1741946658520,1.79754911,1897.3,1897.2,5.27092]
[1741946658712,1.79754911,1897.4,1897.2,5.27092]
[1741946658896,4.984,1897.3,1897.2,5.27092]
[1741946659404,4.984,1897.3,1897.1,5.28108]
[1741946659405,6.78154911,1897.3,1897.1,5.28108]
[1741946659806,4.984,1897.3,1897.1,10.55211]
[1741946660117,6.78154911,1897.3,1897.1,5.28103]
[1741946660498,4.79754911,1897.2,1897.1,0.01]
[1741946662827,4.79754911,1897.2,1897.1,5.2812]
[1741946663528,6.78154911,1897.3,1897.2,5.27092]
[1741946663729,9.78154911,1897.3,1897.2,5.27092]
[1741946664623,3.0,1897.3,1897.2,5.27092]
[1741946664830,7.81754911,1897.5,1897.3,6.03764]
[1741946664989,6.78154911,1897.4,1897.2,6.03792]
[1741946665189,1.79754911,1897.3,1897.2,5.27092]
[1741946666366,4.984,1897.4,1897.2,5.27092]
[1741946668144,4.984,1897.4,1897.2,10.54165]
[1741946668464,4.984,1897.4,1897.3,5.34777071]
[1741946669067,9.02,1897.5,1897.4,5.27036]
[1741946669245,6.02,1897.5,1897.4,5.34736073]
[1741946669454,4.984,1897.5,1897.4,5.34736073]
[1741946669895,3.0,1897.6,1897.5,5.27009]
[1741946670049,7.984,1897.6,1897.4,6.15173073]
[1741946670783,7.984,1897.6,1897.4,5.34723073]
[1741946670951,14.92733855,1897.6,1897.4,0.07700073]
[1741946671350,14.92733855,1897.6,1897.3,5.27061]
[1741946671752,11.93098,1897.6,1897.4,0.07700779]
[1741946672253,14.92733855,1897.6,1897.4,0.07700779]
[1741946673302,5.27009,1897.5,1897.1,5.28117]
[1741946673449,3.0,1897.4,1897.1,5.28117]
[1741946674061,3.0,1897.4,1897.1,5.28101]
[1741946674262,3.8157,1897.4,1897.1,5.28101]
[1741946674686,3.8157,1897.4,1897.2,0.00456567]
[1741946675185,3.0,1897.3,1897.2,0.00456567]
[1741946676384,3.0,1897.3,1897.2,5.27548567]
[1741946677797,3.0,1897.3,1897.2,0.00456567]
[1741946678393,3.80215855,1897.6,1897.2,5.27528567]
[1741946678596,4.984,1897.5,1897.3,5.27063]
[1741946678799,11.84147585,1897.6,1897.3,5.27063]
[1741946679004,7.984,1897.4,1897.3,6.06223]
[1741946681084,7.984,1897.4,1897.3,5.27063]
[1741946681282,7.984,1897.4,1897.3,5.34786663]
[1741946681512,7.984,1897.4,1897.3,0.07723663]
[1741946682220,7.984,1897.4,1897.3,5.34787663]
[1741946682418,7.984,1897.4,1897.3,0.07723663]
[1741946684923,9.68983586,1897.4,1897.3,0.07723663]
[1741946685126,7.984,1897.4,1897.3,0.07723663]
[1741946686622,13.25436,1897.4,1897.3,0.07723663]
[1741946687122,13.25436,1897.4,1897.2,0.00456567]
[1741946687486,13.25436,1897.4,1897.3,0.07722252]
[1741946690824,7.984,1897.4,1897.3,0.07722252]
[1741946691023,15.48720986,1897.4,1897.3,0.07722252]
[1741946691331,15.48720986,1897.4,1897.2,0.00456567]
[1741946691694,15.48720986,1897.4,1897.3,0.07722252]
[1741946692829,18.50720986,1897.4,1897.3,0.07722252]
[1741946693327,13.23684986,1897.4,1897.3,0.07722252]
[1741946694029,11.004,1897.4,1897.3,6.16426252]
[1741946696831,6.02,1897.4,1897.3,6.16426252]
[1741946698390,4.984,1897.6,1897.5,6.02429]
[1741946698595,4.984,1897.6,1897.5,6.10125257]
[1741946698833,4.984,1897.6,1897.5,7.23840383]
[1741946699235,4.984,1897.6,1897.5,7.29110102]
[1741946699395,17.437,1897.7,1897.6,6.06401]
[1741946699621,6.02,1898.1,1898.0,5.2687]
[1741946699825,0.39039423,1898.2,1898.0,5.34476586]
[1741946700062,4.984,1898.1,1898.0,5.34476586]
[1741946700649,4.984,1898.1,1898.0,0.07618586]
[1741946700864,5.4824,1898.1,1898.0,0.07618586]
[1741946701051,5.4824,1898.1,1897.8,5.2691]
[1741946701357,4.984,1898.1,1897.9,0.07382715]
[1741946701564,4.984,1898.1,1897.9,5.34275715]
[1741946701928,4.984,1898.1,1897.9,10.61151715]
[1741946702131,4.984,1898.1,1897.9,5.34258715]
[1741946702460,4.984,1898.1,1897.9,10.61142715]
[1741946702658,4.984,1898.1,1898.0,5.2687]
[1741946702839,4.984,1898.1,1898.0,5.34239725]
[1741946703670,6.40742403,1898.3,1898.1,5.26832]
[1741946704165,4.983,1898.2,1898.1,5.26842]
[1741946704367,4.983,1898.2,1898.1,5.878102]
[1741946705462,4.983,1898.2,1898.1,0.609682]
[1741946705973,11.04816,1898.2,1897.8,5.26924]
[1741946707331,11.04816,1898.2,1897.8,10.53831]
[1741946707743,11.04816,1898.2,1897.9,5.26896]
[1741946708229,11.04816,1898.2,1897.8,5.26907]
[1741946709156,5.26857,1898.1,1897.7,5.26952]
[1741946709330,5.26857,1898.1,1897.7,5.879312]
[1741946709530,5.26857,1898.1,1897.7,0.609792]
[1741946709531,5.26871,1898.0,1897.7,0.609792]
[1741946709731,0.7864,1897.9,1897.5,6.40718126]
[1741946709983,10.25151,1897.8,1897.5,1.13715126]
[1741946710134,5.26984,1897.6,1897.2,6.02968567]
[1741946710335,11.29732,1897.6,1897.2,6.02968567]
[1741946710567,6.02734,1897.6,1897.2,5.27528567]
[1741946710936,0.7575,1897.6,1897.3,5.27052]
[1741946711733,5.26964,1897.7,1897.3,11.59556057]
[1741946712074,5.8035,1897.8,1897.5,5.26997]
[1741946713069,5.8035,1897.8,1897.6,0.07147239]
[1741946713862,6.19781142,1897.8,1897.6,0.07147239]
[1741946714071,16.73657142,1897.8,1897.4,6.09992]
[1741946714266,3.0,1897.7,1897.5,0.07160234]
[1741946714471,3.0,1897.7,1897.4,6.09992]
[1741946714680,3.0,1897.7,1897.5,0.07160234]
[1741946715579,3.0,1897.7,1897.5,5.34166234]
[1741946716860,3.0,1897.7,1897.5,0.07160234]
[1741946717505,14.28956,1897.7,1897.5,0.07160234]
[1741946717647,3.0,1897.5,1897.2,6.05458567]
[1741946717848,4.983,1897.4,1897.3,0.07201735]
[1741946718160,4.983,1897.4,1897.3,5.27064]
[1741946718553,4.983,1897.4,1897.3,7.25427992]
[1741946718985,28.439,1897.7,1897.6,6.04891]
[1741946719153,22.419,1897.7,1897.6,6.04891]
[1741946719481,22.419,1897.7,1897.6,6.12084055]
[1741946720745,17.436,1897.7,1897.6,6.12084055]
[1741946721061,17.436,1897.7,1897.6,7.25990661]
[1741946722792,25.70553,1897.7,1897.6,0.07193055]
[1741946722960,29.52708855,1897.7,1897.6,0.07193055]
[1741946723160,8.2699,1897.6,1897.2,11.36534567]
[1741946723359,3.0,1897.6,1897.2,5.27537567]
[1741946723582,3.0,1897.6,1897.3,5.27048]
[1741946724188,3.0,1897.6,1897.3,10.54094]
[1741946724691,3.0,1897.6,1897.3,10.54092]
[1741946724987,3.0,1897.6,1897.3,10.54099]
[1741946727281,3.0,1897.6,1897.4,5.2702]
[1741946727449,3.0,1897.6,1897.4,5.27036]
[1741946728300,3.0,1897.6,1897.5,0.06930946]
[1741946728463,3.0,1897.6,1897.3,10.54117]
[1741946728785,3.0,1897.6,1897.5,0.06930946]
[1741946728987,3.0,1897.6,1897.4,0.06943942]
[1741946729188,3.0,1897.6,1897.5,0.06930946]
[1741946729357,23.456,1897.7,1897.5,0.06930946]
[1741946729574,5.003,1897.6,1897.4,6.04839]
[1741946729750,5.003,1897.6,1897.4,11.31865]
[1741946729952,5.005,1897.6,1897.5,5.27007]
[1741946730493,23.456,1897.7,1897.5,5.27007]
[1741946730661,23.456,1897.7,1897.6,5.26981]
[1741946730871,22.439,1897.7,1897.6,5.26981]
[1741946732792,5.003,1897.7,1897.6,5.26981]
[1741946733099,3.0,1897.6,1897.4,5.27025]
[1741946733524,3.0,1897.6,1897.3,5.27057]
[1741946734924,3.0,1897.6,1897.3,10.54102]
[1741946735620,3.0,1897.6,1897.4,5.27033]
[1741946736129,5.003,1897.7,1897.4,5.27033]
[1741946736287,11.903014,1897.7,1897.3,5.27045]
[1741946736715,17.172744,1897.7,1897.3,5.27045]
[1741946737422,11.903014,1897.7,1897.3,10.54097]
[1741946737725,11.903014,1897.7,1897.4,5.27034]
[1741946739927,11.903014,1897.7,1897.3,5.27045]
[1741946740082,0.7608,1897.5,1897.2,5.2708]
[1741946740288,0.7608,1897.5,1897.3,5.27061]
[1741946740783,0.7608,1897.5,1897.2,5.27091]
[1741946741847,6.03093,1897.5,1897.1,5.28117]
[1741946742019,5.27039,1897.4,1897.1,5.28117]
[1741946742219,4.991,1897.3,1897.1,5.28117]
[1741946743020,4.991,1897.3,1897.2,0.19369453]
[1741946743346,4.991,1897.3,1897.1,5.28117]
[1741946743645,4.991,1897.3,1897.2,0.19369453]
[1741946743843,4.991,1897.3,1897.1,5.28117]
[1741946744043,10.26168,1897.3,1897.1,0.01]
[1741946744345,11.814887,1897.3,1897.2,0.19369453]
[1741946744654,11.814887,1897.3,1897.1,0.01]
[1741946744840,10.26168,1897.3,1897.1,0.01]
[1741946745048,10.26168,1897.3,1897.2,0.19369453]
[1741946745348,10.26168,1897.3,1897.1,0.01]
[1741946745544,10.26168,1897.3,1897.2,0.19369453]
[1741946745934,10.26168,1897.3,1897.1,0.01]
[1741946746139,10.26168,1897.3,1897.2,0.19369453]
[1741946746310,10.26168,1897.3,1897.1,0.01]
[1741946746504,10.26168,1897.3,1897.2,0.19369453]
[1741946746815,0.7898,1897.2,1897.1,0.01]
[1741946747010,6.06072,1897.2,1897.1,0.01]
[1741946747344,9.06072,1897.2,1897.1,0.01]
[1741946748564,3.7898,1897.2,1897.1,0.01]
[1741946749565,9.06072,1897.2,1897.1,0.01]
[1741946749736,3.7898,1897.2,1897.1,0.01]
[1741946749941,3.0,1897.2,1897.1,0.01]
[1741946751166,3.0,1897.2,1897.1,5.2812]
[1741946751368,7.984,1897.2,1897.1,5.2812]
[1741946751672,7.984,1897.2,1897.1,0.01]
[1741946752768,7.984,1897.2,1897.1,5.2812]
[1741946753065,7.984,1897.2,1897.1,0.01]
[1741946754144,4.984,1897.2,1897.1,5.809329]
[1741946755163,4.984,1897.2,1897.1,5.2812]
[1741946757300,4.984,1897.2,1897.1,0.01]
[1741946757508,4.984,1897.2,1897.1,5.2812]
[1741946757876,4.984,1897.2,1897.1,5.46868373]
[1741946758477,4.984,1897.2,1897.1,6.24788373]
[1741946758692,4.984,1897.2,1897.1,7.3998011]
[1741946758914,3.0,1897.4,1897.1,7.3998011]
[1741946758915,3.0,1897.4,1897.2,5.27077]
[1741946759213,4.984,1897.3,1897.2,5.27077]
[1741946759377,4.984,1897.3,1897.1,6.06026]
[1741946759571,4.984,1897.3,1897.1,11.33134]
[1741946759992,4.984,1897.3,1897.1,6.06021]
[1741946760732,4.984,1897.3,1897.2,5.27092]
[1741946761391,4.984,1897.3,1897.1,5.28101]
[1741946762535,4.984,1897.3,1897.1,10.5521]
[1741946762824,4.984,1897.2,1897.1,10.5521]
[1741946763930,4.97943433,1897.2,1897.1,11.68453]
[1741946764432,4.97943433,1897.2,1897.1,1.14243]
[1741946764594,4.97943433,1897.2,1897.1,0.01]
[1741946764794,4.97943433,1897.2,1897.1,5.2812]
[1741946765337,4.97943433,1897.2,1897.1,0.01]
[1741946765505,9.02,1897.5,1897.4,5.27036]
[1741946765695,14.004,1897.5,1897.4,5.27036]
[1741946765891,14.004,1897.5,1897.2,6.02606]
[1741946766132,14.004,1897.5,1897.4,0.18392961]
[1741946766327,14.004,1897.5,1897.3,5.2706]
[1741946766531,14.004,1897.5,1897.4,0.18392961]
[1741946769144,7.984,1897.5,1897.4,0.18392961]
[1741946770046,15.4254476,1897.5,1897.4,0.18392961]
[1741946770344,0.807,1897.2,1897.1,0.01]
[1741946770717,6.07792,1897.2,1897.1,0.01]
[1741946770965,0.807,1897.2,1897.1,0.01]
[1741946773047,0.807,1897.2,1897.1,0.19433325]
[1741946773244,0.807,1897.2,1897.1,0.01]
[1741946773445,0.807,1897.2,1897.1,0.19433325]
[1741946773646,0.807,1897.2,1897.1,0.01]
[1741946773854,0.807,1897.2,1897.1,0.19433325]
[1741946774030,3.0,1897.3,1897.1,0.01]
[1741946774228,6.08437,1897.4,1897.1,0.01]
[1741946774229,3.814,1897.4,1897.2,5.27079]
[1741946774413,7.984,1897.3,1897.2,5.27079]
[1741946774835,7.984,1897.3,1897.2,5.45513339]
[1741946775749,4.984,1897.3,1897.2,5.45513339]
[1741946776339,4.984,1897.3,1897.2,0.18434339]
[1741946776541,4.984,1897.3,1897.1,6.05039]
[1741946776738,4.984,1897.3,1897.2,0.18429437]
[1741946777048,4.984,1897.3,1897.1,7.182394]
[1741946777251,4.984,1897.3,1897.2,0.18429437]
[1741946777569,4.984,1897.3,1897.1,5.28101]
[1741946777733,4.984,1897.3,1897.2,0.18429437]
[1741946777940,9.38717555,1897.3,1897.1,0.01]
[1741946778150,10.98035855,1897.3,1897.2,0.18426636]
[1741946778437,10.98035855,1897.3,1897.1,0.01]
[1741946778652,10.98035855,1897.3,1897.2,0.18426636]
[1741946778853,10.98035855,1897.3,1897.1,0.01]
[1741946779178,10.98035855,1897.3,1897.2,0.18426636]
[1741946779563,10.98035855,1897.3,1897.1,0.01]
[1741946779765,10.98035855,1897.3,1897.2,0.18426636]
[1741946780373,10.98035855,1897.3,1897.1,0.01]
[1741946780670,10.98035855,1897.3,1897.2,0.18426636]
[1741946780993,17.00035855,1897.3,1897.1,0.01]
[1741946781273,17.00035855,1897.3,1897.2,0.18426636]
[1741946781571,17.00035855,1897.3,1897.1,0.01]
[1741946781738,17.00035855,1897.3,1897.2,0.18426636]
[1741946781940,17.00035855,1897.3,1897.1,0.01]
[1741946782141,17.00035855,1897.3,1897.2,0.18426636]
[1741946782347,17.00035855,1897.3,1897.1,5.28116]
[1741946782542,17.00035855,1897.3,1897.2,0.18432938]
[1741946782747,14.00035855,1897.3,1897.1,5.28116]
[1741946783068,14.00035855,1897.3,1897.2,0.18432938]
[1741946783265,14.00035855,1897.3,1897.1,5.809276]
[1741946783458,14.00035855,1897.3,1897.2,0.18432938]
[1741946783787,14.00035855,1897.3,1897.1,5.809276]
[1741946783979,14.00035855,1897.3,1897.2,0.18432938]
[1741946784180,14.00035855,1897.3,1897.1,5.28116]
[1741946784389,14.00035855,1897.3,1897.2,0.18432938]
[1741946784678,14.00035855,1897.3,1897.2,5.27092]
[1741946784984,14.00035855,1897.3,1897.2,5.45524938]
[1741946785679,14.00035855,1897.3,1897.2,6.23954938]
[1741946785888,11.004,1897.3,1897.2,6.23954938]
[1741946786346,14.00035855,1897.3,1897.2,5.45524938]
[1741946786546,7.98035855,1897.3,1897.2,5.45524938]
[1741946787383,4.984,1897.3,1897.2,5.45524938]
[1741946788284,3.0,1897.4,1897.2,5.45524938]
[1741946788493,4.984,1897.3,1897.2,5.45524938]
[1741946796310,4.984,1897.3,1897.2,0.18432938]
[1741946796603,4.984,1897.3,1897.1,10.55218]
[1741946796803,4.984,1897.3,1897.2,0.18421736]
[1741946797171,4.984,1897.3,1897.1,5.28102]
[1741946797378,4.984,1897.3,1897.2,0.18421736]
[1741946797607,7.98035855,1897.3,1897.1,5.28102]
[1741946797810,7.98035855,1897.3,1897.2,0.18421736]
[1741946798219,7.98035855,1897.3,1897.1,10.55205]
[1741946798522,7.97935855,1897.3,1897.2,5.45513736]
[1741946799927,7.97935855,1897.3,1897.2,0.18421736]
[1741946800127,7.97935855,1897.3,1897.2,5.27092]
[1741946800626,7.97935855,1897.3,1897.2,5.45520036]
[1741946803527,3.0,1897.4,1897.3,5.27064]
[1741946803695,3.0,1897.4,1897.3,6.21758348]
[1741946807439,7.983,1897.4,1897.3,6.21758348]
[1741946809006,8.7334,1897.4,1897.3,0.18414348]
[1741946809411,8.7334,1897.4,1897.2,10.54156]
[1741946809637,11.72975855,1897.4,1897.3,0.18389147]
[1741946809836,14.03175241,1897.4,1897.3,0.18389147]
[1741946810115,14.03175241,1897.4,1897.1,5.28102]
[1741946810313,14.03175241,1897.4,1897.2,0.18403535]
[1741946810532,14.03175241,1897.4,1897.1,5.28102]
[1741946810724,19.30217241,1897.4,1897.2,0.18403535]
[1741946810928,1.93021724,1897.3,1897.2,0.18403535]
[1741946811129,14.03175241,1897.4,1897.2,0.18403535]
[1741946811541,11.03539386,1897.4,1897.2,5.27086]
[1741946811842,3.0,1897.4,1897.3,0.18389847]
[1741946812146,7.983,1897.4,1897.3,0.18389847]
[1741946813548,7.983,1897.4,1897.2,5.27088]
[1741946814051,7.983,1897.4,1897.3,0.18404549]
[1741946814750,7.983,1897.4,1897.1,0.01]
[1741946814954,13.25336,1897.4,1897.1,5.28115]
[1741946815129,7.983,1897.4,1897.2,0.18418237]
[1741946815648,7.983,1897.4,1897.3,0.18402449]
[1741946815649,15.255726,1897.4,1897.3,0.18402449]
[1741946815819,18.25208455,1897.4,1897.3,0.18402449]
[1741946816021,18.25208455,1897.4,1897.1,0.01]
[1741946816243,18.25208455,1897.4,1897.3,0.18402449]
[1741946816414,24.29087455,1897.4,1897.2,0.18416137]
[1741946816618,24.29087455,1897.4,1897.3,0.18402449]
[1741946816827,19.02028455,1897.4,1897.3,0.18402449]
[1741946817054,19.02028455,1897.4,1897.1,0.01]
[1741946817254,19.02028455,1897.4,1897.3,0.1840735]
[1741946817455,19.02028455,1897.4,1897.2,0.18421038]
[1741946817623,7.983,1897.4,1897.3,0.1840735]
[1741946817952,7.983,1897.4,1897.1,6.09595]
[1741946818150,13.25338,1897.4,1897.1,6.09595]
[1741946818352,13.25338,1897.4,1897.2,0.18421038]
[1741946818528,13.25338,1897.4,1897.1,6.09595]
[1741946819055,7.983,1897.4,1897.2,0.18421038]
[1741946819355,7.983,1897.4,1897.1,6.09595]
[1741946819655,7.983,1897.4,1897.2,0.18421038]
[1741946819954,13.25339,1897.4,1897.1,5.28105]
[1741946820252,0.7682,1897.3,1897.2,0.18421038]
[1741946820660,11.74755855,1897.4,1897.1,0.01]
[1741946820959,17.01802855,1897.4,1897.2,0.18433641]
[1741946821314,17.01802855,1897.4,1897.1,0.01]
[1741946821315,17.01802855,1897.4,1897.3,0.18419953]
[1741946821754,11.74755855,1897.4,1897.3,0.18419953]
[1741946822161,11.74755855,1897.4,1897.3,0.18422053]
[1741946822463,11.74755855,1897.4,1897.1,5.28104]
[1741946822647,11.74755855,1897.4,1897.3,0.18422053]
[1741946822849,15.79522941,1897.4,1897.2,0.18435741]
[1741946823051,15.79522941,1897.4,1897.3,0.18420653]
[1741946823252,21.06559941,1897.4,1897.3,0.18420653]
[1741946823864,21.06559941,1897.4,1897.1,5.28104]
[1741946824063,17.01792855,1897.4,1897.3,0.18420653]
[1741946824225,17.01792855,1897.4,1897.2,0.18434341]
[1741946824426,17.01792855,1897.4,1897.3,0.18420653]
[1741946824870,17.01792855,1897.4,1897.1,5.28104]
[1741946825068,17.01792855,1897.4,1897.3,0.18420653]
[1741946825228,17.01792855,1897.4,1897.2,0.18434341]
[1741946825432,17.01792855,1897.4,1897.3,0.18420653]
[1741946825633,11.74755855,1897.4,1897.3,0.18420653]
[1741946825953,10.97935855,1897.4,1897.1,5.28104]
[1741946826260,10.97935855,1897.4,1897.2,0.18434341]
[1741946826426,16.24981855,1897.4,1897.2,0.18434341]
[1741946826633,21.52041855,1897.4,1897.1,0.01]
[1741946826829,12.03467855,1897.2,1897.1,0.01]
[1741946827671,18.05467855,1897.2,1897.1,0.01]
[1741946829059,18.05467855,1897.2,1896.5,5.27275]
[1741946829060,0.7918,1896.8,1896.5,5.27275]
[1741946829260,3.0,1896.5,1896.3,5.27321]
[1741946829674,3.0,1896.5,1896.4,5.27314]
[1741946830368,3.0,1896.5,1896.3,5.27323]
[1741946831685,3.0,1896.5,1896.3,10.54654]
[1741946832332,3.0,1896.5,1896.3,5.27323]
[1741946832537,3.0,1896.5,1896.4,5.27314]
[1741946832965,3.0,1896.5,1896.4,5.4331633]
[1741946833541,3.0,1896.5,1896.4,0.1600233]
[1741946833941,3.0,1896.5,1896.4,0.15974584]
[1741946834278,3.0,1896.5,1896.3,5.27323]
[1741946834477,3.0,1896.5,1896.4,0.15974584]
[1741946834867,3.0,1896.5,1896.3,5.27323]
[1741946835184,3.0,1896.5,1896.4,0.15974584]
[1741946835489,3.39343858,1896.6,1896.2,6.10149]
[1741946835670,4.75831444,1896.6,1896.4,0.15974584]
[1741946835873,4.75831444,1896.6,1896.3,5.43326285]
[1741946836180,4.75831444,1896.6,1896.5,0.15960884]
[1741946836359,10.03094444,1896.6,1896.4,0.15974584]
[1741946836549,0.7729,1896.5,1896.4,0.15974584]
[1741946837092,0.7729,1896.5,1896.3,5.27338]
[1741946837377,0.7729,1896.5,1896.4,0.15974584]
[1741946837749,0.7729,1896.5,1896.3,5.27338]
[1741946838248,0.7729,1896.5,1896.4,0.15974584]
[1741946838689,0.7729,1896.5,1896.3,5.27338]
[1741946838901,0.7729,1896.5,1896.4,0.15974584]
[1741946839041,1.32602144,1896.5,1896.4,0.15974584]
[1741946839459,3.0,1896.4,1896.1,5.27391]
[1741946839654,4.984,1896.3,1896.1,5.27391]
[1741946841647,4.984,1896.3,1896.2,5.2737]
[1741946843450,4.984,1896.3,1896.2,6.0555]
[1741946843665,4.984,1896.3,1896.2,7.188441]
[1741946843890,9.02,1896.5,1896.4,6.05494]
[1741946844388,6.02,1896.5,1896.4,6.05494]
[1741946844750,4.985,1896.7,1896.6,5.27259]
[1741946844973,4.985,1896.8,1896.7,0.8128]
[1741946845176,4.985,1896.8,1896.7,6.08511]
[1741946845372,4.985,1896.8,1896.7,7.22615203]
[1741946845574,9.02,1897.0,1896.9,5.27175]
[1741946845750,14.005,1897.0,1896.9,6.08455]
[1741946846355,11.005,1897.0,1896.9,6.08455]
[1741946846557,6.02,1897.0,1896.9,6.08455]
[1741946846888,6.02,1897.0,1896.9,7.220208]
[1741946847288,4.985,1897.2,1897.1,5.2712]
[1741946847991,4.985,1897.2,1897.1,5.4244146]
[1741946849597,4.985,1897.2,1897.1,0.1532146]
[1741946850313,4.985,1897.2,1897.1,5.4244146]
[1741946850974,17.445,1897.3,1897.2,5.27092]
[1741946851185,22.429,1897.3,1897.2,6.08762]
[1741946851526,1.18552315,1897.9,1897.7,5.26953]
[1741946851678,4.984,1897.8,1897.7,5.26953]
[1741946851879,18.2323,1898.1,1897.8,5.42134346]
[1741946852103,4.984,1898.0,1897.9,5.26898]
[1741946852616,4.984,1898.0,1897.9,5.42079353]
[1741946853478,4.984,1898.0,1897.9,5.37079353]
[1741946855617,4.984,1898.0,1897.9,0.15181353]
[1741946855920,11.75655855,1898.0,1897.7,5.26952]
[1741946856210,7.984,1898.0,1897.8,5.26925]
[1741946856713,3.0,1897.9,1897.7,5.26942]
[1741946856912,3.0,1897.9,1897.8,5.42000988]
[1741946857220,4.987,1897.9,1897.8,5.42000988]
[1741946857620,20.442,1898.1,1898.0,5.2687]
[1741946857799,20.442,1898.1,1898.0,5.41919327]
[1741946860522,22.9855,1898.1,1898.0,0.15049327]
[1741946860726,23.7941,1898.1,1898.0,5.41919327]
[1741946861038,23.7941,1898.1,1898.0,5.41899848]
[1741946861390,23.7941,1898.1,1898.0,0.15029848]
[1741946862097,29.06252,1898.1,1898.0,0.15029848]
[1741946862314,29.06252,1898.1,1897.7,11.34067]
[1741946862499,5.26881,1898.0,1897.7,0.8018]
[1741946862699,11.69830155,1898.0,1897.8,0.15057206]
[1741946862921,8.26898,1897.9,1897.8,0.15057206]
[1741946863102,8.26898,1897.9,1897.4,5.27015]
[1741946863304,3.0,1897.7,1897.4,5.27015]
[1741946863499,3.0,1897.7,1897.5,5.41085558]
[1741946864429,3.0,1897.7,1897.5,0.14080558]
[1741946865429,9.43583168,1897.7,1897.5,0.14080558]
[1741946865592,9.43583168,1897.7,1897.3,6.09743]
[1741946865992,9.43583168,1897.7,1897.4,0.14094244]
[1741946867536,14.70558168,1897.7,1897.4,0.14094244]
[1741946867822,9.43583168,1897.7,1897.3,6.09743]
[1741946868023,9.43583168,1897.7,1897.4,0.14103983]
[1741946868224,8.26627855,1897.6,1897.4,0.14103983]
[1741946868425,8.27009,1897.5,1897.4,0.14103983]
[1741946868727,5.27043,1897.4,1897.0,5.27146]
[1741946868889,7.99235855,1897.3,1897.0,5.26420695]
[1741946870399,7.99235855,1897.3,1897.0,10.53549695]